{"text_format":"1","workbook":"xlsx","n_sheets":7,"sheets":["مقدمة","بيانات عامة"," العملاء والتمويل الممنوح","تحليل محفظة التمويل","إنتظام السداد وجدول المتأخرات"," ديون معدومة"," تحصيلات لأرصدة سبق إعدامها"],"not_rendered":{"charts":0,"images":2,"macros":1,"external_links":0,"defined_names":1,"comments":0,"pivot_tables":0},"unopened":[],"bounds":{"document_bytes":16777216,"sheet_cells":100000,"rows_first":2000,"rows_last":500,"rows_between":2000,"halvings":0,"cell_chars":16384,"cell_head_chars":4096},"cells_cut":0,"cells_raw":0,"read":"whole","date_system":"1900"}

{"sheet":"مقدمة","index":0,"n_rows":24,"n_cols":10,"rows_kept":24,"cut":false,"hidden":false,"merged":[[18,9,18,13],[20,18,20,19]]}
[]
[]
[]
[]
[]
[null,null,null,null,null,null,"  أولاً: تقرير (ج.م.ص. / 1) الأداء الشهرى لنشاط التمويل متناهى الصغر"]
[]
[null,null,null,"تلتزم الجمعية أو المؤسسة  بناءً على نص المادة \"42 \" من قواعد ومعايير ممارسة نشاط التمويل متناهي الصغربإعداد التقارير الرقابية  المبينة فى الملحق (ب) وتسليمها "]
[null,null,null,"للوحدة فى التوقيتات المحددة قرين كل منها."]
[]
[null,null,null,"على الجمعية أو المؤسسة السعى نحو توافق النماذج المستخدمة وتصميم قواعد البيانات وتطبيقات نظم المعلومات بقدر الإمكان مع متطلبات إعداد التقارير الرقابية المشار "]
[null,null,null,"إليها لتسهيل إعدادها."]
[]
[null,null,null,"يجب على الجمعية أو المؤسسة بذل العناية اللازمة للتأكد من دقة التقارير المقدمة للوحدة وسلامة تصويرها ."]
[]
[null,null,null,"وقد تم تصميم النموذج الإلكتروني المرفق لمساعدة الجمعيات و المؤسسات الأهلية بإعداد التقارير الشهرية المطلوبة "]
[]
[]
[null,null,null,null,null,null,null,null,null,"  التوقيت: خلال أسبوعين من نهاية كل شهر ميلادى"]
[]
[]
[null,null," "]
[]
[null,null,null,null,null,null,"                                                                                                                                                                                                                                                                                                                                                                                                                                                                                                                                                   "]

{"sheet":"بيانات عامة","index":1,"n_rows":37,"n_cols":11,"rows_kept":37,"cut":false,"hidden":false,"merged":[[7,3,13,10],[36,1,36,2],[33,5,33,7],[4,3,4,10],[15,3,15,10],[25,4,25,10],[30,5,30,7],[17,4,17,10],[21,3,21,12],[27,3,27,12],[19,4,19,5],[23,4,23,10],[30,9,30,11]]}
[]
[]
[]
[]
[null,null,null,"تقرير (ج.م.ص. / 1) الأداء الشهرى لنشاط التمويل متناهى الصغر للجمعية أو المؤسسة الأهلية"]
[]
[]
[]
[]
[]
[]
[]
[]
[]
[]
[null,null,null,"بيانات الجمعية / المؤسسة الأهلية و بيانات معد التقرير"]
[]
[null,null,null,"اسم الجمعية/المؤسسة :"]
[]
[null,null,null,"رقم الترخيص :"]
[]
[null,null,null,"اسم وصفة معد التقرير"]
[]
[null,null,null,"اسم معد التقرير:"]
[]
[null,null,null,"صفة معد التقرير:"]
[]
[null,null,null,"بيانات التقرير"]
[]
[null,null,null,null,null,"يوم  -","شهر  -","سنة",null,"يوم  -","شهر  -            سنة"]
[null,null,null,"الفترة :","من",null,null,null,"إلى"]
[]
[null,null,null,null,null,"يوم  -","شهر  -","سنة"]
[null,null,null,"تاريخ الاعداد:"]
[]
[]
[null,"إعداد:",null,{"$f":"IF(E24=\"\",\"\",E24)","v":""}]

{"sheet":" العملاء والتمويل الممنوح","index":2,"n_rows":41,"n_cols":8,"rows_kept":41,"cut":false,"hidden":false,"merged":[[40,1,40,2],[40,3,40,5],[36,6,37,7],[32,3,32,6],[4,3,4,7],[15,3,15,7],[33,6,34,7],[8,4,12,7],[6,4,6,5]]}
[]
[null,{"$f":"IF('بيانات عامة'!E18=\"\",\"\",'بيانات عامة'!E18)","v":""},null,null,null,null,"ترخيص رقم:",{"$f":"IF('بيانات عامة'!E20=\"\",\"\",'بيانات عامة'!E20)","v":""}]
[]
[]
[null,null,null,"تقرير (ج.م.ص. / 1) الأداء الشهرى لنشاط التمويل متناهى الصغر للجمعية أو المؤسسة الأهلية"]
[]
[null,null,null,"الفترة من :",{"$f":"IF('بيانات عامة'!F31=\"\",\"\",'بيانات عامة'!F31)","v":""},null,"إلى:",{"$f":"IF('بيانات عامة'!J31=\"\",\"\",'بيانات عامة'!J31)","v":""}]
[]
[]
[]
[]
[]
[]
[]
[]
[null,null,null,"1. العملاء والتمويل الممنوح"]
[null,null,null,null,"بيان","عملاء مستمرون","عملاء جدد خلال الفترة","المجموع"]
[null,null,null,1.1000000000000001,"إجمالى عدد عملاء تمويل أفراد"]
[null,null,null,1.2,"منهم عدد العملاء – ذكور"]
[null,null,null,1.3,"منهم عدد العملاء - إناث"]
[null,null,null,1.4,"إجمالى قيمة أرصدة تمويل أفراد"]
[null,null,null,1.5,"منها أرصدة تمويل لعملاء – ذكور"]
[null,null,null,1.6,"منها أرصدة تمويل لعملاء - إناث"]
[null,null,null,1.7,"إجمالى عدد عقود تمويل جماعى"]
[null,null,null,1.8,"إجمالى عدد عملاء عقود تمويل جماعى"]
[null,null,null,1.9,"منهم عدد العملاء – ذكور"]
[null,null,null,"1.10","منهم عدد العملاء - إناث"]
[null,null,null,1.1100000000000001,"إجمالى قيمة أرصدة تمويل جماعى"]
[null,null,null,1.1200000000000001,"منها أرصدة تمويل لعملاء – ذكور"]
[null,null,null,1.1299999999999999,"منها أرصدة تمويل لعملاء - إناث"]
[]
[]
[null,null,null,"بناء على البيانات التي تم إدخالها في الجدول أعلاه "]
[null,null,null,null,"إجمالي قيمة أرصدة التمويل القائمة",null,{"$f":"IF(H36+G36=0,\"\",H36+G36)","v":""}]
[null,null,null,null,"(إجمالي قيمة أرصدة تمويل أفراد + إجمالي قيمة أرصدة تمويل جماعي)"]
[null,null,null,null,null,null,{"$f":"IF($H$28<>\"\",$H$28,IF(AND($H$29<>\"\",$H$30<>\"\"),$H$29+$H$30,IF(AND($G$28<>\"\",$F$28<>\"\"),$F$28+$G$28,$G$29+$F$29+$G$30+$F$30)))","v":0},{"$f":"IF($H$21<>\"\",$H$21,IF(AND($H$22<>\"\",$H$23<>\"\"),$H$22+$H$23,IF(AND($G$21<>\"\",$F$21<>\"\"),$F$21+$G$21,$G$22+$F$22+$G$23+$F$23)))","v":0}]
[null,null,null,null,"عدد العملاء الحاصلون على تمويل",null,{"$f":"IF(H39+G39=0,\"\",H39+G39)","v":""}]
[null,null,null,null,"(إجمالي عدد عملاء تمويل أفراد + إجمالي عدد عملاء عقود تمويل جماعي)"]
[null,null,null,null,null,null,{"$f":"IF($H$25<>\"\",$H$25,IF(AND($H$26<>\"\",$H$27<>\"\"),$H$26+$H$27,IF(AND($G$25<>\"\",$F$25<>\"\"),$F$25+$G$25,$G$26+$F$26+$G$27+$F$27)))","v":0},{"$f":"IF($H$18<>\"\",$H$18,IF(AND($H$19<>\"\",$H$20<>\"\"),$H$19+$H$20,IF(AND($G$18<>\"\",$F$18<>\"\"),$F$18+$G$18,$G$19+$F$19+$G$20+$F$20)))","v":0}]
[]
[null,"إعداد:",null,{"$f":"IF('بيانات عامة'!$E$24=\"\",\"\",'بيانات عامة'!$E$24)","v":""}]

{"sheet":"تحليل محفظة التمويل","index":3,"n_rows":53,"n_cols":8,"rows_kept":53,"cut":false,"hidden":false,"merged":[[52,1,52,2],[52,3,52,4],[4,3,4,7],[16,3,17,3],[16,4,16,7],[45,6,46,7],[48,6,49,7],[35,3,36,3],[35,4,35,7],[15,3,15,7],[34,3,34,7],[26,6,27,7],[29,6,30,7],[8,3,12,7],[6,4,6,5]]}
[]
[null,{"$f":"IF('بيانات عامة'!E18=\"\",\"\",'بيانات عامة'!E18)","v":""},null,null,null,null,"ترخيص رقم:",{"$f":"IF('بيانات عامة'!E20=\"\",\"\",'بيانات عامة'!E20)","v":""}]
[]
[]
[null,null,null,"تقرير (ج.م.ص. / 1) الأداء الشهرى لنشاط التمويل متناهى الصغر للجمعية أو المؤسسة الأهلية"]
[]
[null,null,null,"الفترة من :",{"$f":"IF('بيانات عامة'!F31=\"\",\"\",'بيانات عامة'!F31)","v":""},null,"إلى:",{"$f":"IF('بيانات عامة'!J31=\"\",\"\",'بيانات عامة'!J31)","v":""}]
[]
[]
[]
[]
[]
[]
[]
[]
[null,null,null,"2.1 قيمة أرصدة التمويل القائمة"]
[null,null,null,"المنتج التمويلى","مجال النشاط الممنوح له التمويل"]
[null,null,null,null,"تجارى","إنتاجى / حرفى","خدمى","زراعى"]
[]
[]
[]
[]
[null,null,null,"إجمالى"]
[null,null,null,null,{"$f":"IF(AND(E19=\"\",E20=\"\",E21=\"\",E22=\"\"),\"\",E22+E21+E20+E19)","v":""},{"$f":"IF(AND(H19=\"\",F20=\"\",F21=\"\",F22=\"\"),\"\",F22+F21+F20+H19)","v":""},{"$f":"IF(AND(G19=\"\",G20=\"\",G21=\"\",G22=\"\"),\"\",G22+G21+G20+G19)","v":""},{"$f":"IF(AND(H19=\"\",H20=\"\",H21=\"\",H22=\"\"),\"\",H22+H21+H20+H19)","v":""}]
[]
[null,null,null,"بناء على البيانات التي تم إدخالها في الجدول أعلاه "]
[null,null,null,"إجمالي قيمة أرصدة التمويل القائمة",null,null,{"$f":"IF(OR(E19<>\"\",E20<>\"\",E21<>\"\",E22<>\"\",F19<>\"\",F20<>\"\",F21<>\"\",F22<>\"\",G19<>\"\",G20<>\"\",G21<>\"\",G22<>\"\",H19<>\"\",H20<>\"\",H21<>\"\",H22<>\"\"),SUM(E19:H22),IF(OR(E24<>\"\",F24<>\"\",G24<>\"\",H24<>\"\"),E24+F24+G24+H24,\"\"))","v":""}]
[null,null,null,"(إجمالي قيمة أرصدة تمويل تجاري+إنتاجي/حرفي+خدمي+زراعي)"]
[]
[null,null,null,"مدى مطابقة \"إجمالي قيمة أرصدة التمويل القائمة\" بالجدول أعلاه ل\"إجمالي قيمة أرصدة ",null,null,{"$f":"IF(G27=\"\",\"\",IF(ROUND(G27,1)=ROUND(' العملاء والتمويل الممنوح'!G34,1),\"مطابق\",\"غير مطابق\"))","v":""}]
[null,null,null,"التمويل القائمة\" بالجدول رقم \"1\" الخاص بالعملاء و التمويل الممنوح بالصفحة السابقة"]
[]
[]
[]
[null,null,null,"2.2 عدد العملاء الحاصلين على التمويل"]
[null,null,null,"المنتج التمويلى","مجال النشاط الممنوح له التمويل"]
[null,null,null,null,"تجارى","إنتاجى / حرفى","خدمى","زراعى"]
[]
[]
[]
[]
[null,null,null,"إجمالى"]
[null,null,null,null,{"$f":"IF(AND(E38=\"\",E37=\"\",E39=\"\",E40=\"\",E41=\"\"),\"\",E41+E40+E39+E38)","v":0},{"$f":"IF(AND(F38=\"\",F37=\"\",F39=\"\",F40=\"\",F41=\"\"),\"\",F41+F40+F39+F38)","v":0},{"$f":"IF(AND(G38=\"\",G37=\"\",G39=\"\",G40=\"\",G41=\"\"),\"\",G41+G40+G39+G38)","v":0},{"$f":"IF(AND(H38=\"\",H37=\"\",H39=\"\",H40=\"\",H41=\"\"),\"\",H41+H40+H39+H38)","v":0}]
[]
[null,null,null,"بناء على البيانات التي تم إدخالها في الجدول أعلاه "]
[null,null,null,"إجمالي عدد العملاء الحاصلين على التمويل",null,null,{"$f":"IF(SUM(E38:H41)=0,\"\",SUM(E38:H41))","v":""}]
[null,null,null,"(إجمالي عدد العملاء الحاصلين على (تمويل تجاري+إنتاجي/حرفي+خدمي+زراعي)"]
[]
[null,null,null,"مدى مطابقة \"إجمالي عدد العملاء الحاصلين على التمويل\" بالجدول أعلاه ل\"إجمالي عدد العملاء ",null,null,{"$f":"IF(G46=\"\",\"\",IF(G46=' العملاء والتمويل الممنوح'!G37,\"مطابق\",\"غير مطابق\"))","v":""}]
[null,null,null,"الحاصلين على التمويل\" بالجدول رقم \"1\" الخاص بالعملاء و التمويل الممنوح بالصفحة السابقة"]
[]
[]
[null,"إعداد:",null,{"$f":"IF('بيانات عامة'!$E$24=\"\",\"\",'بيانات عامة'!$E$24)","v":""}]

{"sheet":"إنتظام السداد وجدول المتأخرات","index":4,"n_rows":47,"n_cols":10,"rows_kept":47,"cut":false,"hidden":false,"merged":[[46,1,46,2],[46,3,46,5],[4,3,4,7],[30,7,31,8],[33,7,34,8],[39,7,40,8],[42,7,43,8],[16,3,16,9],[8,3,13,9],[6,5,6,6],[6,8,6,9]]}
[]
[null,{"$f":"IF('بيانات عامة'!E18=\"\",\"\",'بيانات عامة'!E18)","v":""},null,null,null,null,"ترخيص رقم:",{"$f":"IF('بيانات عامة'!E20=\"\",\"\",'بيانات عامة'!E20)","v":""}]
[]
[]
[null,null,null,"تقرير (ج.م.ص. / 1) الأداء الشهرى لنشاط التمويل متناهى الصغر للجمعية أو المؤسسة الأهلية"]
[]
[null,null,null,null,"الفترة من :",{"$f":"IF('بيانات عامة'!F31=\"\",\"\",'بيانات عامة'!F31)","v":""},null,"إلى:",{"$f":"IF('بيانات عامة'!J31=\"\",\"\",'بيانات عامة'!J31)","v":""}]
[]
[]
[]
[]
[]
[]
[]
[]
[]
[null,null,null,"3- إنتظام السداد وجدول المتأخرات"]
[null,null,null,null,"بيان","عدد عملاء (عقود)","إجمالى أرصدة مستحقة","أصل الأرصدة بدون أعباء تمويل","نسبة مخصص ديون مشكوك فى تحصيلها","قيمة مخصص ديون مشكوك فى تحصيلها"]
[null,null,null,3.1,"أرصدة تمويل منتظمة (أو بتأخير لا يتجاوز أسبوع)"]
[null,null,null,3.2,"تأخير حتى 30 يوم"]
[null,null,null,3.3,"تأخير حتى 60 يوم"]
[null,null,null,3.4,"تأخير حتى 90 يوم"]
[null,null,null,3.5,"تأخير حتى 120 يوم"]
[null,null,null,3.6,"تأخير يتجاوز 120 يوم"]
[null,null,null,3.7,"أرصدة تمويل – أقساط مرحلة"]
[null,null,null,3.8,"أرصدة تمويل معاد جدولتها"]
[null,null,null,3.9,"إجمالى أرصدة التمويل",null,null,null,"     _"]
[null,null,null,null,null,{"$f":"IF(OR(N(F26<>\"\"),N(F25<>\"\"),N(F24<>\"\"),N(F23<>\"\"),N(F22<>\"\"),N(F21<>\"\"),N(F20<>\"\"),N(F19<>\"\")),F26+F25+F24+F23+F22+F21+F20+F19,\"\")","v":""},{"$f":"IF(AND(G26=\"\",G25=\"\",G24=\"\",G23=\"\",G22=\"\",G21=\"\",G20=\"\",G19=\"\"),\"\",G26+G25+G24+G23+G22+G21+G20+G19)","v":""},{"$f":"IF(AND(H26=\"\",H25=\"\",H24=\"\",H23=\"\",H22=\"\",H21=\"\",H20=\"\",H19=\"\"),\"\",H26+H25+H24+H23+H22+H21+H20+H19)","v":""},null,{"$f":"IF(AND(J26=\"\",J25=\"\",J24=\"\",J23=\"\",J22=\"\",J21=\"\",J20=\"\",J19=\"\"),\"\",J26+J25+J24+J23+J22+J21+J20+J19)","v":""}]
[]
[null,null,null,"بناء على البيانات التي تم إدخالها في الجدول أعلاه "]
[null,null,null,"إجمالي عدد العملاء الذين لهم أرصدة تمويل منتظمة أو بتأخير (لا يتجاوز أسبوع + حتى 30 يوم",null,null,null,{"$f":"IF(SUM(F19:F26)=0,\"\",ROUND(SUM(F19:F26),0))","v":""}]
[null,null,null," + حتى 60 يوم + حتى 90 يوم + حتى 120 يوم + أكثر من 120 يوم )+ أقساط (مرحلة + معاد جدولتها)"]
[]
[null,null,null,"مدى مطابقة \"إجمالي عدد العملاء \" بالجدول أعلاه ل\"إجمالي عدد العملاء الحاصلين على التمويل",null,null,null,{"$f":"IF(H31=\"\",\"\",IF(H31=' العملاء والتمويل الممنوح'!G37,\"مطابق\",\"غير مطابق\"))","v":""}]
[null,null,null,"\" بالجدول رقم \"1\" الخاص بالعملاء و التمويل الممنوح بالصفحة السابقة"]
[]
[]
[]
[null,null,null,"بناء على البيانات التي تم إدخالها في الجدول أعلاه "]
[null,null,null,"إجمالي قيمة أرصدة التمويل القائمة منتظمة أو بتأخير (لا يتجاوز أسبوع + حتى 30 يوم",null,null,null,{"$f":"IF(SUM(H19:H26)=0,\"\",ROUND(SUM(H19:H26),2))","v":""}]
[null,null,null," + حتى 60 يوم + حتى 90 يوم + حتى 120 يوم + أكثر من 120 يوم )+ أقساط (مرحلة + معاد جدولتها) "]
[]
[null,null,null,"مدى مطابقة \"إجمالي قيمة أرصدة التمويل المستحقة\" بالجدول أعلاه ل\"إجمالي قيمة أرصدة ",null,null,null,{"$f":"IF(H40=\"\",\"\",IF(ROUND(H40,1)=ROUND(' العملاء والتمويل الممنوح'!G34,1),\"مطابق\",\"غير مطابق\"))","v":""}]
[null,null,null,"التمويل القائمة\" بالجدول رقم \"1\" الخاص بالعملاء و التمويل الممنوح بالصفحة السابقة"]
[]
[]
[null,"إعداد:",null,{"$f":"IF('بيانات عامة'!$E$24=\"\",\"\",'بيانات عامة'!$E$24)","v":""}]

{"sheet":" ديون معدومة","index":5,"n_rows":25,"n_cols":7,"rows_kept":25,"cut":false,"hidden":false,"merged":[[24,1,24,2],[24,3,24,5],[4,3,4,7],[14,3,14,6],[8,3,12,7],[6,6,6,7]]}
[]
[null,{"$f":"IF('بيانات عامة'!E18=\"\",\"\",'بيانات عامة'!E18)","v":""},null,null,null,"ترخيص رقم:",{"$f":"IF('بيانات عامة'!E20=\"\",\"\",'بيانات عامة'!E20)","v":""}]
[]
[]
[null,null,null,"تقرير (ج.م.ص. / 1) الأداء الشهرى لنشاط التمويل متناهى الصغر للجمعية أو المؤسسة الأهلية"]
[]
[null,null,null,"الفترة من :",{"$f":"IF('بيانات عامة'!F31=\"\",\"\",'بيانات عامة'!F31)","v":""},"إلى:",{"$f":"IF('بيانات عامة'!J31=\"\",\"\",'بيانات عامة'!J31)","v":""}]
[]
[]
[]
[]
[]
[]
[]
[null,null,null,"4. ديون معدومة"]
[null,null,null,"م","بيان","الشهر","من بداية العام"]
[null,null,null,4.0999999999999996,"إجمالى عدد أرصدة معدومة عملاء تمويل أفراد"]
[null,null,null,4.2,"إجمالى قيمة أرصدة تمويل معدومة لعملاء أفراد"]
[null,null,null,4.3,"إجمالى عدد أرصدة معدومة تمويل جماعى"]
[null,null,null,4.4000000000000004,"إجمالى قيمة أرصدة معدومة تمويل جماعى"]
[null,null,null,4.5,"إجمالى عدد أرصدة معدومة لكافة أنواع العملاء"]
[null,null,null,4.5999999999999996,"إجمالى قيمة أرصدة معدومة لكافة أنواع العملاء"]
[]
[]
[null,"إعداد:",null,{"$f":"IF('بيانات عامة'!$E$24=\"\",\"\",'بيانات عامة'!$E$24)","v":""}]

{"sheet":" تحصيلات لأرصدة سبق إعدامها","index":6,"n_rows":22,"n_cols":7,"rows_kept":22,"cut":false,"hidden":false,"merged":[[21,1,21,2],[21,3,21,5],[4,3,4,7],[15,3,15,6],[8,3,12,7]]}
[]
[null,{"$f":"IF('بيانات عامة'!E17=\"\",\"\",'بيانات عامة'!E17)","v":""},null,null,null,"ترخيص رقم:",{"$f":"IF('بيانات عامة'!E20=\"\",\"\",'بيانات عامة'!E20)","v":""}]
[]
[]
[null,null,null,"تقرير (ج.م.ص. / 1) الأداء الشهرى لنشاط التمويل متناهى الصغر للجمعية أو المؤسسة الأهلية"]
[]
[null,null,null,"الفترة من :",{"$f":"IF('بيانات عامة'!F31=\"\",\"\",'بيانات عامة'!F31)","v":""},"إلى:",{"$f":"IF('بيانات عامة'!J31=\"\",\"\",'بيانات عامة'!J31)","v":""}]
[]
[]
[]
[]
[]
[]
[]
[]
[null,null,null,"5. تحصيلات لأرصدة سبق إعدامها"]
[null,null,null,"م","بيان","الشهر","من بداية العام"]
[null,null,null,5.0999999999999996,"إجمالى عدد أرصدة تمويل لكافة أنواع العملاء "]
[null,null,null,5.2,"إجمالى قيمة أرصدة تمويل لكافة أنواع العملاء"]
[]
[]
[null,"إعداد:",null,{"$f":"IF('بيانات عامة'!$E$24=\"\",\"\",'بيانات عامة'!$E$24)","v":""}]